Workbook

Sheet Order Form
A1: № заказа | B1: 1 | K1: eur с НДС | L1: =L8+L11+L29+L48+L62+L69+L84+L105+L131+L173+L186+L192+L196 -> 0
A2: Клиент | K2: eur без НДС | L2: =L1/1.18 -> 0
A3: Скидка | K3: шт | L3: =K8+K11+K29+K48+K62+K69+K84+K105+K131+K173+K186+K192+K196 -> 0
A4: Дата доставки | K4: кг | L4: =AF6 -> 0
K5: м3 | L5: =AG6 -> 0
AF6: =AF8+AF11+AF29+AF48+AF62+AF69+AF84+AF105+AF131+AF173+AF186+AF192+AF196 -> 0 | AG6: =AG8+AG11+AG29+AG48+AG62+AG69+AG84+AG105+AG131+AG173+AG186+AG192+AG196 -> 0
A7: Артикул Product Code | B7: Наименование продукта Product Description | C7: Размер / Упаковка Size / Packaging | G7: Цвет Color | H7: Уп. Cart. | I7: Цена EUR c НДС | J7: Цена со скидкой EUR с НДС | K7: Заказ шт. | L7: Сумма EUR с НДС | AD7: Вес штуки | AE7: Объем штуки | AF7: Вес итого | AG7: Объем итого
A8: Полировальная система 333 | K8: =SUM(K9:K10) -> 0 | L8: =SUM(L9:L10) -> 0 | AF8: =SUM(AF9:AF10) -> 0 | AG8: =SUM(AG9:AG10) -> 0
A9: QW333/ST | B9: Одноступенчатая абразивная полировальная паста Cutting Compound Paste | C9: 250 г | E9: Тюбик | G9: Кремовый | H9: 20 | I9: 4.020975834 | J9: =ROUND(I9*(1-$B$3),2) -> 4.02 | L9: =J9*K9 -> 0 | AD9: 0.265 | AE9: 0.01298 | AF9: =AD9*K9 -> 0 | AG9: =AE9*(K9/H9) -> 0
A10: QW334/1 | B10: Мелкоабразивная полировальная паста Fine Finishing Compound | C10: 1 л | E10: Бутылка | G10: Кремовый | H10: 6 | I10: 25.73424534 | J10: 25.73 | L10: 0 | AD10: 1.2583 | AE10: 0.01395 | AF10: =AD10*K10 -> 0 | AG10: =AE10*(K10/H10) -> 0
A11: Лаки SYSTEM 20 | K11: =SUM(K14:K24) -> 0 | L11: =SUM(L14:L24) -> 0 | AF11: =SUM(AF14:AF24) -> 0 | AG11: =SUM(AG14:AG24) -> 0
A12: S2080/1 | B12: S2080 HS Лак Super Clear 2:1 | C12: 1 л | E12: Банка | G12: Прозрачный | H12: 6 | I12: 16.16988432 | J12: =ROUND(I12*(1-$B$3),2) -> 16.17 | L12: =J12*K12 -> 0
A13: S2080/5 | B13: S2080 HS Лак Super Clear 2:1 | C13: 5 л | E13: Банка | G13: Прозрачный | H13: 2 | I13: 72.24586398 | J13: 72.25 | L13: 0
A14: S2081EV/1 | B14: S2081EV UHS Лак Diamond 2:1 | C14: 1 л | E14: Банка | G14: Прозрачный | H14: 6 | I14: 21.9912 | J14: 21.99 | L14: 0 | AD14: 1.1417 | AE14: 0.01197 | AF14: =AD14*K14 -> 0 | AG14: =AE14*(K14/H14) -> 0
A15: S2081EV/5 | B15: S2081EV UHS Лак Diamond 2:2 | C15: 5 л | E15: Банка | G15: Прозрачный | H15: 2 | I15: 94.7172 | J15: 94.72 | L15: 0 | AD15: 5.4 | AE15: 0.0163 | AF15: 0 | AG15: 0
A16: S2081/1 | B16: S2081 HS Лак Clear 2:1 | C16: 1 л | E16: Банка | G16: Прозрачный | H16: 6 | I16: 12.90533644 | J16: 12.91 | L16: 0 | AD16: 1.1417 | AE16: 0.01197 | AF16: 0 | AG16: 0
A17: S2081/5 | B17: S2081 HS Лак Clear 2:1 | C17: 5 л | E17: Банка | G17: Прозрачный | H17: 2 | I17: 58.63084322 | J17: 58.63 | L17: 0 | AD17: 5.4 | AE17: 0.0163 | AF17: 0 | AG17: 0
A18: S2081SR/1 | B18: S2081SR HS Лак повышенной прочности Clear 2:1 | C18: 1 л | E18: Банка | G18: Прозрачный | H18: 6 | I18: 17.55649831 | J18: 17.56 | L18: 0 | AD18: 1.1417 | AE18: 0.01197 | AF18: 0 | AG18: 0
A19: S2091/1 | B19: S2091 HS Лак Performance 2:1 | C19: 1 л | E19: Банка | G19: Прозрачный | H19: 6 | I19: 14.95796186 | J19: 14.96 | L19: 0 | AD19: 1.1417 | AE19: 0.01197 | AF19: 0 | AG19: 0
A20: S2091/5 | B20: S2091 HS Лак Performance 2:1 | C20: 5 л | E20: Банка | G20: Прозрачный | H20: 2 | I20: 66.90685424 | J20: 66.91 | L20: 0 | AD20: 5.4 | AE20: 0.0163 | AF20: 0 | AG20: 0
A21: S2082/1 | B21: S2082 HS Лак медленный Overall Clear 2:1 | C21: 1 л | E21: Банка | G21: Прозрачный | H21: 6 | I21: 14.95796186 | J21: 14.96 | L21: 0 | AD21: 1.1417 | AE21: 0.01197 | AF21: 0 | AG21: 0
A22: S2086/1 | B22: S2086 HS Лак быстрый Super Fast 3:1 | C22: 1 л | E22: Банка | G22: Прозрачный | H22: 6 | I22: 15.37285424 | J22: 15.37 | L22: 0 | AD22: 1.1417 | AE22: 0.01197 | AF22: 0 | AG22: 0
A23: S2086/5 | B23: S2086 HS Лак быстрый Super Fast 3:1 | C23: 5 л | E23: Банка | G23: Прозрачный | H23: 2 | I23: 69.60365466 | J23: 69.6 | L23: 0 | AD23: 5.4 | AE23: 0.0163 | AF23: 0 | AG23: 0
A24: S2088/1 | B24: S2088 HS Лак Universal 4:1 | C24: 1 л | E24: Банка | G24: Прозрачный | H24: 6 | I24: 11.82443263 | J24: 11.82 | L24: 0 | AD24: 1.1417 | AE24: 0.01197 | AF24: 0 | AG24: 0
A25: Биндеры EUROPEAN GENUINE COATINGS | I25: 0
A26: EGCB100/4 | B26: Биндер акриловый для базовых покрытий 100 | C26: 4 л | E26: Банка | G26: Прозрачный | H26: 4 | I26: 60.23582161 | J26: 60.24 | L26: 0 | AD26: 4.125 | AE26: 0.02141 | AF26: =AD26*K26 -> 0 | AG26: =AE26*(K26/H26) -> 0
A27: EGCB150/4 | B27: Биндер полиэфирный для базовых покрытий 150 | C27: 4 л | E27: Банка | G27: Прозрачный | H27: 4 | I27: 47.53793136 | J27: 47.54 | L27: 0 | AD27: 4.125 | AE27: 0.02141 | AF27: =AD27*K27 -> 0 | AG27: =AE27*(K27/H27) -> 0
A28: EGCB160/4 | B28: Биндер полиэфирный для базовых покрытий 160 | C28: 4 л | E28: Банка | G28: Прозрачный | H28: 4 | I28: 47.53793136 | J28: 47.54 | L28: 0 | AD28: 4.125 | AE28: 0.02141 | AF28: =AD28*K28 -> 0 | AG28: =AE28*(K28/H28) -> 0
A29: Грунты SYSTEM 20 | K29: =SUM(K30:K47) -> 0 | L29: =SUM(L30:L47) -> 0 | AF29: =SUM(AF30:AF45) -> 0 | AG29: =SUM(AG30:AG45) -> 0
A30: S2021G/1 | B30: S2021 UHS Грунт наполнитель 5:1 | C30: 1 л | E30: Банка | G30: Серый | H30: 6 | I30: 15.30734492 | J30: 15.31 | L30: 0 | AD30: 1.8333 | AE30: 0.00972 | AF30: =AD30*K30 -> 0 | AG30: =AE30*(K30/H30) -> 0
A31: S2021G/3 | B31: S2021 UHS Грунт наполнитель 5:1 | C31: 3 л | E31: Банка | G31: Серый | H31: 4 | I31: 44.27338347 | J31: 44.27 | L31: 0 | AD31: 5.2125 | AE31: 0.02069 | AF31: 0 | AG31: 0
A32: S2021G/5 | B32: S2021 UHS Грунт наполнитель 5:1 | C32: 5 л | E32: Банка | G32: Серый | H32: 2 | I32: 69.24335339 | J32: 69.24 | L32: 0 | AD32: 8 | AE32: 0.01606 | AF32: 0 | AG32: 0
A33: S2025W/1 | B33: S2025 UHS Грунт наполнитель 4:1 | C33: 1 л | E33: Банка | G33: Белый | H33: 6 | I33: 11.50780424 | J33: =ROUND(I33*(1-$B$3),2) -> 11.51 | L33: =J33*K33 -> 0 | AD33: 1.8917 | AE33: 0.00972 | AF33: 0 | AG33: 0
A34: S2025W/3T | B34: S2025 UHS Грунт наполнитель 4:1 | C34: 3 л | E34: Банка | G34: Белый | H34: 4 | I34: 34.06484746 | J34: 34.06 | L34: 0 | AD34: 5.125 | AE34: 0.02069 | AF34: 0 | AG34: 0
A35: S2025W/4 | B35: S2025 UHS Грунт наполнитель 4:1 | C35: 4 л | E35: Банка | G35: Белый | H35: 2 | I35: 43.59645381 | J35: 43.6 | L35: 0 | AD35: 7.25 | AE35: 0.01508 | AF35: 0 | AG35: 0
A36: S2025/1 | B36: S2025 UHS Грунт наполнитель 4:1 | C36: 1 л | E36: Банка | G36: Серый | H36: 6 | I36: 11.50780424 | J36: 11.51 | L36: 0 | AD36: 1.8917 | AE36: 0.00972 | AF36: 0 | AG36: 0
A37: S2025/3T | B37: S2025 UHS Грунт наполнитель 4:1 | C37: 3 л | E37: Банка | G37: Серый | H37: 4 | I37: 34.06484746 | J37: 34.06 | L37: 0 | AD37: 5.125 | AE37: 0.02069 | AF37: 0 | AG37: 0
A38: S2025/4 | B38: S2025 UHS Грунт наполнитель 4:1 | C38: 4 л | E38: Банка | G38: Серый | H38: 2 | I38: 43.59645381 | J38: 43.6 | L38: 0 | AD38: 7.25 | AE38: 0.01508 | AF38: 0 | AG38: 0
A39: S2025B/1 | B39: S2025 UHS Грунт наполнитель 4:1 | C39: 1 л | E39: Банка | G39: Черный | H39: 6 | I39: 11.50780424 | J39: 11.51 | L39: 0 | AD39: 1.8917 | AE39: 0.00972 | AF39: 0 | AG39: 0
A40: S2025B/3T | B40: S2025 UHS Грунт наполнитель 4:1 | C40: 3 л | E40: Банка | G40: Черный | H40: 4 | I40: 34.74614441 | J40: =ROUND(I40*(1-$B$3),2) -> 34.75 | L40: =J40*K40 -> 0 | AD40: 5.125 | AE40: 0.02069 | AF40: 0 | AG40: 0
A41: S2025B/4 | B41: S2025 UHS Грунт наполнитель 4:1 | C41: 4 л | E41: Банка | G41: Черный | H41: 2 | I41: 43.59645381 | J41: 43.6 | L41: 0 | AD41: 7.25 | AE41: 0.01508 | AF41: 0 | AG41: 0
A42: Грунты специального назначения | I42: 0
A43: BAR/1 | B43: BARCOAT Изолятор покрытий быстрый | C43: 1 л | E43: Банка | G43: Желтый | H43: 6 | I43: 28.66032839 | J43: 28.66 | L43: 0 | AD43: 1.3167 | AE43: 0.00972 | AF43: =AD43*K43 -> 0 | AG43: =AE43*(K43/H43) -> 0
A44: ACID/1 | B44: ACID 8 Грунт протравливающий | C44: 1 л | E44: Банка | G44: Серый | H44: 6 | I44: 25.33027119 | J44: 25.33 | L44: 0 | AD44: 1.2167 | AE44: 0.00972 | AF44: =AD44*K44 -> 0 | AG44: =AE44*(K44/H44) -> 0
A45: S2003/1 | B45: S2003 1K Грунт адгезионный для пластика | C45: 1 л | E45: Банка | G45: Прозрачный | H45: 6 | I45: 23.98733008 | J45: 23.99 | L45: 0 | AD45: 1.0417 | AE45: 0.01197 | AF45: =AD45*K45 -> 0 | AG45: =AE45*(K45/H45) -> 0
A46: REP/1 | B46: U-POL Грунт эпоксидный 3:1 | C46: 750 мл | E46: Банка | G46: Светло-серый | H46: 6 | I46: 10.45 | J46: =ROUND(I46*(1-$B$3),2) -> 10.45 | L46: =J46*K46 -> 0 | AD46: 1.8917 | AE46: 0.00972 | AF46: =AD46*K46 -> 0 | AG46: =AE46*(K46/H46) -> 0
A47: REH/SM | B47: U-POL Отвердитель для грунта эпоксидного 3:1 | C47: 250 мл | E47: Банка | G47: Прозрачный | H47: 6 | I47: 6.75 | J47: 6.75 | L47: 0 | AD47: 0.3167 | AE47: 0.0056 | AF47: 0 | AG47: 0
A48: Отвердители SYSTEM 20 | K48: =SUM(K49:K60) -> 0 | L48: =SUM(L49:L60) -> 0 | AF48: =SUM(AF49:AF60) -> 0 | AG48: =SUM(AG49:AG60) -> 0
A49: S2030/SM | B49: S2030 Отвердитель быстрый | C49: 250 мл | E49: Банка | G49: Прозрачный | H49: 12 | I49: 6.398077119 | J49: 6.4 | L49: 0 | AD49: 0.3167 | AE49: 0.0056 | AF49: =AD49*K49 -> 0 | AG49: =AE49*(K49/H49) -> 0
A50: S2030/S | B50: S2030 Отвердитель быстрый | C50: 330 мл | E50: Банка | G50: Прозрачный | H50: 6 | I50: 7.992137288 | J50: 7.99 | L50: 0 | AD50: 0.45 | AE50: 0.00476 | AF50: 0 | AG50: 0
A51: S2030/M | B51: S2030 Отвердитель быстрый | C51: 500 мл | E51: Банка | G51: Прозрачный | H51: 6 | I51: 11.58423178 | J51: 11.58 | L51: 0 | AD51: 0.6083 | AE51: 0.00577 | AF51: 0 | AG51: 0
A52: S2030/1 | B52: S2030 Отвердитель быстрый | C52: 1 л | E52: Банка | G52: Прозрачный | H52: 6 | I52: 22.96101737 | J52: 22.96 | L52: 0 | AD52: 1.1417 | AE52: 0.01197 | AF52: 0 | AG52: 0
A53: S2030/25 | B53: S2030 Отвердитель быстрый | C53: 2.5 л | E53: Банка | G53: Прозрачный | H53: 4 | I53: 48.56424407 | J53: 48.56 | L53: 0 | AD53: 2.75 | AE53: 0.01852 | AF53: 0 | AG53: 0
A54: S2030/5 | B54: S2030 Отвердитель быстрый | C54: 5 л | E54: Банка | G54: Прозрачный | H54: 2 | I54: 94.34434195 | J54: 94.34 | L54: 0 | AD54: 5.375 | AE54: 0.01474 | AF54: 0 | AG54: 0
A55: S2032/SM | B55: S2032 Отвердитель стандартный | C55: 250 мл | E55: Банка | G55: Прозрачный | H55: 12 | I55: 6.529095763 | J55: =ROUND(I55*(1-$B$3),2) -> 6.53 | L55: =J55*K55 -> 0 | AD55: 0.3042 | AE55: 0.0056 | AF55: 0 | AG55: 0
A56: S2032/S | B56: S2032 Отвердитель стандартный | C56: 330 мл | E56: Банка | G56: Прозрачный | H56: 6 | I56: 9.193141525 | J56: 9.19 | L56: 0 | AD56: 0.45 | AE56: 0.00476 | AF56: 0 | AG56: 0
A57: S2032/M | B57: S2032 Отвердитель стандартный | C57: 500 мл | E57: Банка | G57: Прозрачный | H57: 6 | I57: 12.8835 | J57: 12.88 | L57: 0 | AD57: 0.6167 | AE57: 0.00577 | AF57: 0 | AG57: 0
A58: S2032/1 | B58: S2032 Отвердитель стандартный | C58: 1 л | E58: Банка | G58: Прозрачный | H58: 6 | I58: 25.35210763 | J58: 25.35 | L58: 0 | AD58: 1.15 | AE58: 0.01197 | AF58: 0 | AG58: 0
A59: S2032/25 | B59: S2032 Отвердитель стандартный | C59: 2.5 л | E59: Банка | G59: Прозрачный | H59: 4 | I59: 48.56424407 | J59: 48.56 | L59: 0 | AD59: 2.8 | AE59: 0.01852 | AF59: 0 | AG59: 0
A60: S2032/5 | B60: S2032 Отвердитель стандартный | C60: 5 л | E60: Банка | G60: Прозрачный | H60: 2 | I60: 94.34434195 | J60: 94.34 | L60: 0 | AD60: 5.475 | AE60: 0.01634 | AF60: 0 | AG60: 0
A61: S2039EV/S | B61: S2039EV Отвердитель стандартный | C61: 330 мл | E61: Банка | G61: Прозрачный | H61: 6 | I61: 16.1466 | J61: =ROUND(I61*(1-$B$3),2) -> 16.15 | L61: =J61*K61 -> 0
A62: Разбавители SYSTEM 20 | K62: =SUM(K63:K68) -> 0 | L62: =SUM(L63:L68) -> 0 | AF62: =SUM(AF63:AF68) -> 0 | AG62: =SUM(AG63:AG68) -> 0
A63: S2044/1 | B63: S2044 Разбавитель мультифункциональный, быстрый | C63: 1 л | E63: Банка | G63: Прозрачный | H63: 5 | I63: 8.144992373 | J63: 8.14 | L63: 0 | AD63: 1.05 | AE63: 0.00826 | AF63: =AD63*K63 -> 0 | AG63: =AE63*(K63/H63) -> 0
A64: S2044/5 | B64: S2044 Разбавитель мультифункциональный, быстрый | C64: 5 л | E64: Банка | G64: Прозрачный | H64: 2 | I64: 30.58193517 | J64: =ROUND(I64*(1-$B$3),2) -> 30.58 | L64: =J64*K64 -> 0
A65: S2045/1 | B65: S2045 Разбавитель мультифункциональный, стандартный | C65: 1 л | E65: Банка | G65: Прозрачный | H65: 5 | I65: 6.81 | J65: 6.81 | L65: 0 | AD65: 1.05 | AE65: 0.00826 | AF65: =AD65*K65 -> 0 | AG65: =AE65*(K65/H65) -> 0
A66: S2045/5 | B66: S2045 Разбавитель мультифункциональный, стандартный | C66: 5 л | E66: Банка | G66: Прозрачный | H66: 2 | I66: 25.36 | J66: 25.36 | L66: 0 | AD66: 4.8 | AE66: 0.01634 | AF66: =AD66*K66 -> 0 | AG66: =AE66*(K66/H66) -> 0
A67: S2046/1 | B67: S2046 Разбавитель мультифункциональный, медленный | C67: 1 л | E67: Банка | G67: Прозрачный | H67: 5 | I67: 8.144992373 | J67: =ROUND(I67*(1-$B$3),2) -> 8.14 | L67: =J67*K67 -> 0
A68: S2046/5 | B68: S2046 Разбавитель мультифункциональный, медленный | C68: 5 л | E68: Банка | G68: Прозрачный | H68: 2 | I68: 30.58193517 | J68: 30.58 | L68: 0 | AD68: 4.8 | AE68: 0.01634 | AF68: =AD68*K68 -> 0 | AG68: =AE68*(K68/H68) -> 0
A69: Дополнительные материалы SYSTEM 20 | K69: =SUM(K70:K74) -> 0 | L69: =SUM(L70:L75) -> 0 | AF69: =SUM(AF70:AF74) -> 0 | AG69: =SUM(AG70:AG74) -> 0
A70: S2000/5 | B70: S2000 Обезжириватель-антисиликон на водной основе | C70: 5 л | E70: Банка | G70: Прозрачный | H70: 2 | I70: 23.53968305 | J70: =ROUND(I70*(1-$B$3),2) -> 23.54 | L70: =J70*K70 -> 0 | AD70: 5.2 | AE70: 0.01634 | AF70: =AD70*K70 -> 0 | AG70: =AE70*(K70/H70) -> 0
A71: S2001/5 | B71: S2001 Обезжириватель-антисиликон, быстрый | C71: 5 л | E71: Банка | G71: Прозрачный | H71: 2 | I71: 21.89103178 | J71: 21.89 | L71: 0 | AD71: 4.3375 | AE71: 0.01634 | AF71: =AD71*K71 -> 0 | AG71: =AE71*(K71/H71) -> 0
A72: S2002/1 | B72: S2002 Обезжириватель-антисиликон, медленный | C72: 1 л | E72: Банка | G72: Прозрачный | H72: 6 | I72: 5.677474576 | J72: 5.68 | L72: 0 | AD72: 0.9667 | AE72: 0.01197 | AF72: =AD72*K72 -> 0 | AG72: =AE72*(K72/H72) -> 0
A73: S2002/5 | B73: S2002 Обезжириватель-антисиликон, медленный | C73: 5 л | E73: Банка | G73: Прозрачный | H73: 2 | I73: 21.89103178 | J73: 21.89 | L73: 0 | AD73: 4.5 | AE73: 0.01634 | AF73: =AD73*K73 -> 0 | AG73: =AE73*(K73/H73) -> 0
A74: S20FISH/S | B74: FISH EYE Растворитель антисиликоновый | C74: 250 мл | E74: Бутылка | G74: Прозрачный | H74: 10 | I74: 9.6798 | J74: 9.68 | L74: 0 | AD74: 0.29 | AE74: 0.0072 | AF74: =AD74*K74 -> 0 | AG74: =AE74*(K74/H74) -> 0
A75: ROC/S | B75: Акселератор cушки ROCKET | C75: 250 мл | E75: Бутылка | G75: Прозрачный | H75: 10 | I75: 4.8654 | J75: 4.87 | L75: 0 | AD75: 0.27 | AE75: 0.0072
A76: Покрытия специального назначения, антигравии и герметики | K76: =SUM(K77:K83) -> 0 | L76: =SUM(L77:L83) -> 0 | AF76: =SUM(AF77:AF93) -> 0 | AG76: =SUM(AG77:AG93) -> 0
A77: GRA/NB1 | B77: GRAVITEX PLUS HS Антигравийное покрытие | C77: 1 л | E77: Бутылка | G77: Черный | H77: 12 | I77: 8.428866102 | J77: =ROUND(I77*(1-$B$3),2) -> 8.43 | L77: =J77*K77 -> 0 | AD77: 1.375 | AE77: 0.02062 | AF77: =AD77*K77 -> 0 | AG77: =AE77*(K77/H77) -> 0
A78: GRA/GG1 | B78: GRAVITEX PLUS HS Антигравийное покрытие | C78: 1 л | E78: Бутылка | G78: Серый | H78: 12 | I78: 8.636312288 | J78: 8.64 | L78: 0 | AD78: 1.35 | AE78: 0.02062 | AF78: 0 | AG78: 0
A79: GRA/BW1 | B79: GRAVITEX PLUS HS Антигравийное покрытие | C79: 1 л | E79: Бутылка | G79: Белый | H79: 12 | I79: 8.636312288 | J79: 8.64 | L79: 0 | AD79: 1.375 | AE79: 0.02062 | AF79: 0 | AG79: 0
A80: TIG/GG | B80: TIGERSEAL Клей-герметик полиуретановый | C80: 310 мл | E80: Картридж | G80: Серый | H80: 12 | I80: 8.243256356 | J80: 8.24 | L80: =J80*K80 -> 0 | AD80: 0.4646 | AE80: 0.00808 | AF80: 0 | AG80: 0
A81: TIG/NB | B81: TIGERSEAL Клей-герметик полиуретановый | C81: 310 мл | E81: Картридж | G81: Черный | H81: 12 | I81: 8.243256356 | J81: 8.24 | L81: =J81*K81 -> 0 | AD81: 0.4333 | AE81: 0.00808 | AF81: 0 | AG81: 0
A82: TIG/BW | B82: TIGERSEAL Клей-герметик полиуретановый | C82: 310 мл | E82: Картридж | G82: Белый | H82: 12 | I82: 8.243256356 | J82: 8.24 | L82: =J82*K82 -> 0 | AD82: 0.4708 | AE82: 0.00808 | AF82: 0 | AG82: 0
A83: GS/1 | B83: GREY STRIPE Покрытие защитное для швов | C83: 1 л | E83: Банка | G83: Серый | H83: 6 | I83: 21.50889407 | J83: 21.51 | L83: =J83*K83 -> 0 | AD83: 1.2667 | AE83: 0.01087 | AF83: 0 | AG83: 0
A84: Защитное покрытие RAPTOR | K84: =SUM(K85:K104) -> 0 | L84: =SUM(L85:L104) -> 0 | AF84: =SUM(AF85:AF104) -> 0 | AG84: =SUM(AG85:AG104) -> 0
A85: RLB/S1 | B85: RAPTOR 2K 3:1 Защитное покрытие повышенной прочности, комплект | C85: 0.95л | E85: Комплект | G85: Черный | H85: 6 | I85: 24.12926695 | J85: =ROUND(I85*(1-$B$3),2) -> 24.13 | L85: =J85*K85 -> 0 | AD85: 1.4483 | AE85: 0.00474 | AF85: =AD85*K85 -> 0 | AG85: =AE85*(K85/H85) -> 0
A86: RLT/S1 | B86: RAPTOR 2K 3:1 Защитное покрытие повышенной прочности, комплект | C86: 0.95л | E86: Комплект | G86: Колеруемый | H86: 6 | I86: 24.12926695 | J86: 24.13 | L86: 0 | AD86: 1.4483 | AE86: 0.00474 | AF86: 0 | AG86: =AE86*(K86/H86) -> 0
A87: RLB/S4 | B87: RAPTOR 2K 3:1 Защитное покрытие повышенной прочности, комплект | C87: 3.80л | E87: Комплект | G87: Черный | H87: 4+1 | I87: 83.58989492 | J87: 83.59 | L87: 0 | AD87: 5 | AE87: 0.01028 | AF87: 0 | AG87: =AE87*K87 -> 0
A88: RLT/S4 | B88: RAPTOR 2K 3:1 Защитное покрытие повышенной прочности, комплект | C88: 3.80л | E88: Комплект | G88: Колеруемый | H88: 4+1 | I88: 83.58989492 | J88: 83.59 | L88: 0 | AD88: =AD87 -> 5 | AE88: =AE87 -> 0.01028 | AF88: 0 | AG88: =AE88*K88 -> 0
A89: RLB/S4-TR | B89: RAPTOR 2K 3:1 Защитное покрытие повышенной прочности + Антискользящая добавка RLTR/SM | C89: 3.8л + 200г | E89: Комплект | G89: Черный | H89: 4+1 | I89: 84.611875 | J89: 84.61 | L89: 0 | AD89: =AD87+0.2 -> 5.2 | AE89: =AE87 -> 0.01028 | AF89: 0 | AG89: =AE89*K89 -> 0
A90: RLT/S4-TR | B90: RAPTOR 2K 3:1 Защитное покрытие повышенной прочности + Антискользящая добавка RLTR/SM | C90: 3.8л + 200г | E90: Комплект | G90: Колеруемый | H90: 4+1 | I90: 84.61239492 | J90: 84.61 | L90: 0 | AD90: =AD88+0.2 -> 5.2 | AE90: =AE88 -> 0.01028 | AF90: 0 | AG90: =AE90*K90 -> 0
A91: RLW/S4 | B91: RAPTOR 2K 3:1 Защитное покрытие повышенной прочности, комплект | C91: 3.80л | E91: Комплект | G91: Белый | H91: 4+1 | I91: 91.94888441 | J91: =ROUND(I91*(1-$B$3),2) -> 91.95 | L91: =J91*K91 -> 0 | AD91: 1.25 | AE91: 0.01083 | AF91: 0 | AG91: =AE91*K91 -> 0
A92: RLB/5 | B92: RAPTOR 2K 3:1 Защитное покрытие повышенной прочности | C92: 5 л | E92: Банка | G92: Черный | H92: 2 | I92: 90.79592034 | J92: 90.8 | L92: 0 | AD92: 6.09 | AE92: 0.00422 | AF92: 0 | AG92: =AE92*(K92/H92) -> 0
A93: RLT/5 | B93: RAPTOR 2K 3:1 Защитное покрытие повышенной прочности | C93: 5 л | E93: Банка | G93: Колеруемый | H93: 2 | I93: 90.79592034 | J93: 90.8 | L93: 0 | AD93: 6.1 | AE93: 0.00422 | AF93: 0 | AG93: 0
A94: RLB/AL | B94: RAPTOR Защитное покрытие повышенной прочности в 2К аэрозоле | C94: 400 мл | E94: Аэрозоль | G94: Черный | H94: 6 | I94: 21.72205932 | J94: =ROUND(I94*(1-$B$3),2) -> 21.72 | L94: 0 | AD94: 0.513 | AE94: 0.0071 | AF94: 0 | AG94: 0
A95: RLW/AL | B95: RAPTOR Защитное покрытие повышенной прочности в 2К аэрозоле | C95: 400 мл | E95: Аэрозоль | G95: Белый | H95: 6 | I95: 23.89426525 | J95: =ROUND(I95*(1-$B$3),2) -> 23.89 | L95: =J95*K95 -> 0 | AD95: 0.513 | AE95: 0.0071 | AF95: 0 | AG95: 0
A96: GUN/1 | B96: RAPTOR Пистолет для нанесения защитных и антигравийных покрытий | C96: - | E96: шт. | G96: - | H96: 5 | I96: 23.86722966 | J96: 23.87 | L96: 0 | AD96: 0.39 | AE96: 0.00978 | AF96: 0 | AG96: 0
A97: GUN/VN | B97: RAPTOR Пистолет профессиональный с регулируемой дюзой | C97: - | E97: шт. | G97: - | H97: 6 | I97: 68.89397034 | J97: 68.89 | L97: =J97*K97 -> 0 | AD97: 0.39 | AE97: 0.00978 | AF97: 0 | AG97: 0
A98: RLH/5 | B98: RAPTOR Отвердитель | C98: 5 л | E98: Банка | G98: Прозрачный | H98: 2 | I98: 103.7776843 | J98: 103.78 | L98: 0 | AD98: 5 | AE98: 0.00345 | AF98: 0 | AG98: 0
A99: REP/1LK | B99: RAPTOR Грунт эпоксидный антикоррозийный, комплект 1 л (0,8 л грунт + 0,2 л отвердитель) | C99: 1л | E99: Комплект | G99: Серый | H99: 8 | I99: 35.77900805 | J99: 35.78 | L99: 0 | AD99: 5 | AE99: 0.00345 | AF99: 0 | AG99: 0
A100: REP/5LK | B100: RAPTOR Грунт эпоксидный антикоррозийный, комплект 5 л (4 л грунт + 1 л отвердитель) | C100: 5л | E100: Комплект | G100: Серый | H100: 1 | I100: 108.0576267 | J100: 108.06 | L100: 0 | AD100: 5 | AE100: 0.00345 | AF100: 0 | AG100: 0
A101: REP/AL | B101: RAPTOR Грунт эпоксидный антикоррозийнный в 2К аэрозоле | C101: 400 мл | E101: Аэрозоль | G101: Бежевый | H101: 6 | I101: 19.54985339 | J101: =ROUND(I101*(1-$B$3),2) -> 19.55 | L101: 0 | AD101: 0.513 | AE101: 0.0071 | AF101: 0 | AG101: 0
A102: RPTAP/AL | B102: RAPTOR Усилитель адгезии | C102: 450 мл | E102: Аэрозоль | G102: Черный | H102: 6 | I102: 12.8835 | J102: =ROUND(I102*(1-$B$3),2) -> 12.88 | L102: 0 | AD102: 0.475 | AE102: 0.0012 | AF102: 0 | AG102: 0
A103: RPTEP/AL | B103: RAPTOR Грунт протравливающий | C103: 450 мл | E103: Аэрозоль | G103: Черный | H103: 6 | I103: 10.85271102 | J103: 10.85 | L103: 0 | AD103: 0.4983 | AE103: 0.0012 | AF103: 0 | AG103: 0
A104: RLTR/SM | B104: RAPTOR TRACTION Добавка антискользящая | C104: 200 г | E104: Упаковка | G104: Серый | H104: 20 | I104: 7.577244915 | J104: 7.58 | L104: 0 | AD104: 0.22 | AE104: 0.00022 | AF104: 0 | AG104: 0
A105: Шпатлевки | K105: =SUM(K106:K130) -> 0 | L105: =SUM(L106:L130) -> 0 | AF105: =SUM(AF112:AF130) -> 0 | AG105: =SUM(AG112:AG130) -> 0
A106: EXSOF/1 | B106: EXTRA SOFT Шпатлевка легкошлифуемая универсальная | C106: 1.1 л | E106: Банка | G106: Бледно-желтый | H106: 8 | I106: 17.004175 | J106: =ROUND(I106*(1-$B$3),2) -> 17 | L106: =J106*K106 -> 0 | AD106: 2.2563 | AE106: 0.00269 | AF106: =AD106*K106 -> 0 | AG106: =AE106*(K106/H106) -> 0
A107: RS6101 | B107: RAPID Шпатлевка быстросохнущая универсальная | C107: 1.1 л | E107: Банка | G107: Серый | H107: 8 | I107: 10.80903814 | J107: =ROUND(I107*(1-$B$3),2) -> 10.81 | L107: =J107*K107 -> 0 | AD107: 1.503 | AE107: 0.00243 | AF107: 0 | AG107: 0
A108: RS6103 | B108: RAPID Шпатлевка быстросохнущая универсальная | C108: 3 л | E108: Банка | G108: Серый | H108: 4 | I108: 26.80423093 | J108: 26.8 | L108: 0 | AD108: 4.3725 | AE108: 0.0049 | AF108: 0 | AG108: 0
A109: RS6208 | B109: RAPID GLAZE Шпатлевка быстросохнущая самовыравнивающаяся | C109: 880 мл | E109: Пакет | G109: Голубой | H109: 6 | I109: 13.45124746 | J109: 13.45 | L109: 0 | AD109: 1.1983 | AE109: 0.0024 | AF109: 0 | AG109: 0
A110: EASY3/1 | B110: EASY 3 Шпатлевка пластичная универсальная | C110: 1.1 л | E110: Банка | G110: Золотой | H110: 8 | I110: 13.10186441 | J110: 13.1 | L110: 0 | AD110: 2.2563 | AE110: 0.00269 | AF110: 0 | AG110: 0
A111: FANT/BL | B111: FANTASTIC Шпатлевка суперлегкая универсальная | C111: 1 л | E111: Пакет | G111: Кремовый | H111: 6 | I111: 11.5405589 | J111: 11.54 | L111: 0 | AD111: 0.9 | AE111: 0.0134 | AF111: 0 | AG111: 0
A112: FANTL/2 | B112: FANTASTIC Шпатлевка суперлегкая универсальная | C112: 1.4 л | E112: Банка | G112: Кремовый | H112: 8 | I112: 16.19172076 | J112: 16.19 | L112: 0 | AD112: 1.4167 | AE112: 0.01646 | AF112: 0 | AG112: 0
A113: FANT/3 | B113: FANTASTIC Шпатлевка суперлегкая универсальная | C113: 3 л | E113: Банка | G113: Кремовый | H113: 4 | I113: 32.38344153 | J113: =ROUND(I113*(1-$B$3),2) -> 32.38 | L113: 0 | AD113: 3.0525 | AE113: 0.02533 | AF113: 0 | AG113: 0
A114: SMCB/2 | B114: SMC CARBON Шпатлевка углеволоконная | C114: 1.1 л | E114: Банка | G114: Черный | H114: 8 | I114: 15.90784703 | J114: 15.91 | L114: 0 | AD114: 2.1063 | AE114: 0.02287 | AF114: 0 | AG114: 0
A115: SMCW/2 | B115: SMC CARBON Шпатлевка углеволоконная легкошлифуемая | C115: 1.1 л | E115: Банка | G115: Белый | H115: 8 | I115: 15.90784703 | J115: 15.91 | L115: 0 | AD115: 2.1375 | AE115: 0.02287 | AF115: 0 | AG115: 0
A116: UPEG/BM | B116: EXTRA GOLD Шпатлевка универсальная | C116: 600 мл | E116: Пакет | G116: Кремовый | H116: 10 | I116: 6.572768644 | J116: 6.57 | L116: 0 | AD116: 1.222 | AE116: 0.01212 | AF116: 0 | AG116: 0
A117: UPEG/BL | B117: EXTRA GOLD Шпатлевка универсальная | C117: 1 л | E117: Пакет | G117: Кремовый | H117: 6 | I117: 10.3613911 | J117: 10.36 | L117: 0 | AD117: 1.944 | AE117: 0.0134 | AF117: 0 | AG117: 0
A118: UPEG/2 | B118: EXTRA GOLD Шпатлевка универсальная | C118: 1.1 л | E118: Банка | G118: Кремовый | H118: 8 | I118: 11.91559977 | J118: 11.92 | L118: 0 | AD118: 2.3531 | AE118: 0.02287 | AF118: 0 | AG118: 0
A119: FIB/BM | B119: FIBRAL Шпатлевка стекловолоконная | C119: 600 мл | E119: Пакет | G119: Желтый | H119: 10 | I119: 7.478980932 | J119: 7.48 | L119: 0 | AD119: 0.95 | AE119: 0.01212 | AF119: 0 | AG119: 0
A120: FIB/BL | B120: FIBRAL Шпатлевка стекловолоконная | C120: 1 л | E120: Пакет | G120: Желтый | H120: 6 | I120: 11.73708686 | J120: 11.74 | L120: 0 | AD120: 1.475 | AE120: 0.0134 | AF120: 0 | AG120: 0
A121: FIB/2 | B121: FIBRAL Шпатлевка стекловолоконная | C121: 0,9 л | E121: Банка | G121: Желтый | H121: 8 | I121: 11.14750297 | J121: 11.15 | L121: 0 | AD121: 1.5438 | AE121: 0.02287 | AF121: 0 | AG121: 0
A122: UPOLD/2 | B122: U-POL D Шпатлевка пластичная с алюминием | C122: 1.1 л | E122: Банка | G122: Серебристый | H122: 8 | I122: 15.94060169 | J122: 15.94 | L122: 0 | AD122: 2.0625 | AE122: 0.02287 | AF122: 0 | AG122: 0
A123: PLAS/6 | B123: PLAST X 6 Шпатлевка для пластика эластичная | C123: 600 мл | E123: Банка | G123: Черный | H123: 6 | I123: 13.05819153 | J123: 13.06 | L123: 0 | AD123: 1.3917 | AE123: 0.01176 | AF123: 0 | AG123: 0
A124: BAGDOL/1 | B124: DOPLHIN GLAZE Шпатлевка самовыравнивающаяся | C124: 440 мл | E124: Пакет | G124: Лазурный | H124: 10 | I124: 6.11420339 | J124: 6.11 | L124: 0 | AD124: 0.62 | AE124: 0.01212 | AF124: 0 | AG124: 0
A125: BAGDOLHV/1 | B125: DOPLHIN GLAZE Шпатлевка самовыравнивающаяся (повышенной вязкости) | C125: 440 мл | E125: Пакет | G125: Лазурный | H125: 10 | I125: 6.474504661 | J125: 6.47 | L125: 0 | AD125: 0.56 | AE125: 0.01212 | AF125: 0 | AG125: 0
A126: EASY/BMP | B126: EASY ONE Шпатлевка наполняющая легкошлифуемая, коробка (10 пакетов по 600 мл.) | C126: 6 л | E126: Коробка | G126: Серый | H126: 1 | I126: 56.30526229 | J126: 56.31 | L126: 0 | AD126: 7.55 | AE126: 0.01212 | AF126: 0 | AG126: 0
A127: FLY/BM | B127: FLYWEIGHT Шпатлевка наполняющая пластичная | C127: 600 мл | E127: Пакет | G127: Светло-серый | H127: 10 | I127: 4.771262288 | J127: 4.77 | L127: 0 | AD127: 0.893 | AE127: 0.01212 | AF127: 0 | AG127: 0
A128: FLY/BL | B128: FLYWEIGHT Шпатлевка наполняющая пластичная | C128: 1 л | E128: Пакет | G128: Светло-серый | H128: 6 | I128: 7.500817373 | J128: 7.5 | L128: 0 | AD128: 1.3933 | AE128: 0.0134 | AF128: 0 | AG128: 0
A129: FLY/3 | B129: FLYWEIGHT Шпатлевка наполняющая пластичная | C129: 3 л | E129: Банка | G129: Светло-серый | H129: 4 | I129: 20.16595297 | J129: 20.17 | L129: 0 | AD129: 3.9825 | AE129: 0.02048 | AF129: 0 | AG129: 0
A130: UPOL/SF1 | B130: REFACE Шпатлевка напыляемая | C130: 1 л | E130: Банка | G130: Белый | H130: 6 | I130: 15.64580975 | J130: 15.65 | L130: 0 | AD130: 1.775 | AE130: 0.01087 | AF130: 0 | AG130: 0
A131: Аэрозоли | K131: =SUM(K132:K172) -> 0 | L131: =SUM(L132:L172) -> 0 | AF131: =SUM(AF132:AF172) -> 0 | AG131: =SUM(AG132:AG172) -> 0
A132: Серия аэрозолей PREMIUM | I132: 0
A133: CLEAR/AL | B133: CLEAR 1 Лак UV устойчивый с высоким глянцем | C133: 450 мл | E133: Аэрозоль | G133: Прозрачный | H133: 6 | I133: 12.8835 | J133: =ROUND(I133*(1-$B$3),2) -> 12.88 | L133: 0 | AD133: 0.5 | AE133: 0.00672 | AF133: =AD133*K133 -> 0 | AG133: =AE133*(K133/H133) -> 0
A134: WELD/AL | B134: WELD 2 Грунт провариваемый с цинком | C134: 450 мл | E134: Аэрозоль | G134: Цинк | H134: 6 | I134: 12.8835 | J134: =ROUND(I134*(1-$B$3),2) -> 12.88 | L134: =J134*K134 -> 0 | AD134: 0.5167 | AE134: 0.00672 | AF134: 0 | AG134: 0
A135: WELDC/AL | B135: WELD 2 Грунт провариваемый с медью | C135: 450 мл | E135: Аэрозоль | G135: Медь | H135: 6 | I135: 12.8835 | J135: =ROUND(I135*(1-$B$3),2) -> 12.88 | L135: =J135*K135 -> 0 | AD135: 0.5167 | AE135: 0.00672 | AF135: =AD135*K135 -> 0 | AG135: =AE135*(K135/H135) -> 0
A136: SPOT/AL | B136: SPOT 3 Грунт универсальный для точечного ремонта | C136: 450 мл | E136: Аэрозоль | G136: Черный | H136: 6 | I136: 12.8835 | J136: =ROUND(I136*(1-$B$3),2) -> 12.88 | L136: =J136*K136 -> 0 | AD136: 0.5167 | AE136: 0.00672 | AF136: 0 | AG136: 0
A137: GRIP/AL | B137: GRIP 4 Усилитель адгезии универсальный | C137: 450 мл | E137: Аэрозоль | G137: Прозрачный | H137: 6 | I137: 12.8835 | J137: =ROUND(I137*(1-$B$3),2) -> 12.88 | L137: =J137*K137 -> 0 | AD137: 0.5 | AE137: 0.00672 | AF137: 0 | AG137: 0
A138: HIGHG/AL | B138: HIGH 5 Грунт толстослойный | C138: 450 мл | E138: Аэрозоль | G138: Серый | H138: 6 | I138: 12.8835 | J138: 12.88 | L138: =J138*K138 -> 0 | AD138: 0.4833 | AE138: 0.00672 | AF138: 0 | AG138: 0
A139: HIGHDG/AL | B139: HIGH 5 Грунт толстослойный | C139: 450 мл | E139: Аэрозоль | G139: Темно-серый | H139: 6 | I139: 12.8835 | J139: 12.88 | L139: 0 | AD139: 0.4667 | AE139: 0.00672 | AF139: 0 | AG139: 0
A140: ACID/AL | B140: ACID 8 Грунт протравливающий | C140: 450 мл | E140: Аэрозоль | G140: Серый | H140: 6 | I140: 10.85271102 | J140: 10.85 | L140: 0 | AD140: 0.0498 | AE140: 0.00672 | AF140: 0 | AG140: 0
A141: BLEND/AL | B141: BLEND #9 Растворитель переходов Fade Out Solvent (обновленный S2043) | C141: 450 мл | E141: Аэрозоль | G141: Прозрачный | H141: 6 | I141: 12.8835 | J141: =ROUND(I141*(1-$B$3),2) -> 12.88 | L141: =J141*K141 -> 0 | AD141: 0.5 | AE141: 0.00672 | AF141: 0 | AG141: 0
A142: GUARD/AL | B142: GUARD #10 GRAVIGARD Антигравийное покрытие (обновленный GRAVA/B) | C142: 450 мл | E142: Аэрозоль | G142: Черный | H142: 6 | I142: 7.445186441 | J142: 7.45 | L142: 0 | AD142: 0.6083 | AE142: 0.00672 | AF142: 0 | AG142: 0
A143: TRIMSLW/AL | B143: TRIM #11 Эмаль высокоукрывистая для колесных дисков | C143: 450 мл | E143: Аэрозоль | G143: Серебристый | H143: 6 | I143: 8.407029661 | J143: 8.41 | L143: 0 | AD143: 0.6083 | AE143: 0.00672 | AF143: 0 | AG143: 0
A144: TRIMSTW/AL | B144: TRIM #11 Эмаль высокоукрывистая для колесных дисков | C144: 450 мл | E144: Аэрозоль | G144: Стальной | H144: 6 | I144: 8.407029661 | J144: 8.41 | L144: 0 | AD144: 0.6083 | AE144: 0.00672 | AF144: 0 | AG144: 0
A145: TRIMGB/AL | B145: TRIM #11 Эмаль высокоукрывистая глянцевая | C145: 450 мл | E145: Аэрозоль | G145: Черный глянец | H145: 6 | I145: 8.407029661 | J145: 8.41 | L145: 0 | AD145: 0.6083 | AE145: 0.00672 | AF145: 0 | AG145: 0
A146: TRIMMB/AL | B146: TRIM #11 Эмаль высокоукрывистая матовая | C146: 450 мл | E146: Аэрозоль | G146: Черный матовый | H146: 6 | I146: 8.407029661 | J146: 8.41 | L146: 0 | AD146: 0.6083 | AE146: 0.00672 | AF146: 0 | AG146: 0
A147: TRIMSB/AL | B147: TRIM #11 Эмаль высокоукрывистая полуматовая | C147: 450 мл | E147: Аэрозоль | G147: Черный полумат | H147: 6 | I147: 8.407029661 | J147: 8.41 | L147: 0 | AD147: 0.6083 | AE147: 0.00672 | AF147: 0 | AG147: 0
A148: TRIMGW/AL | B148: TRIM #11 Эмаль высокоукрывистая глянцевая | C148: 450 мл | E148: Аэрозоль | G148: Белый глянец | H148: 6 | I148: 8.407029661 | J148: 8.41 | L148: 0 | AD148: 0.6083 | AE148: 0.00672 | AF148: 0 | AG148: 0
A149: Серия аэрозолей для ремонта пластика | I149: 0
A150: S2003/AL | B150: S2003 1K Грунт адгезионный для пластика | C150: 600 мл | E150: Аэрозоль | G150: Прозрачный | H150: 12 | I150: 9.782725424 | J150: =ROUND(I150*(1-$B$3),2) -> 9.78 | L150: =J150*K150 -> 0
A151: PLAS/1 | B151: PLAST X 1 Обезжириватель-антисиликон | C151: 400 мл | E151: Аэрозоль | G151: Прозрачный | H151: 9 | I151: 8.144992373 | J151: =ROUND(I151*(1-$B$3),2) -> 8.14 | L151: =J151*K151 -> 0
A152: PLAS/2 | B152: PLAST X 2 Грунт адгезионный | C152: 400 мл | E152: Аэрозоль | G152: Прозрачный | H152: 9 | I152: 8.144992373 | J152: 8.14 | L152: 0 | AD152: 0.4333 | AE152: 0.00882 | AF152: =AD152*K152 -> 0 | AG152: =AE152*(K152/H152) -> 0
A153: PLAS/3 | B153: PLAST X 3 Грунт наполнитель | C153: 400 мл | E153: Аэрозоль | G153: Серый | H153: 9 | I153: 8.144992373 | J153: 8.14 | L153: 0 | AD153: 0.4556 | AE153: 0.00882 | AF153: =AD153*K153 -> 0 | AG153: =AE153*(K153/H153) -> 0
A154: PLAS/4F | B154: PLAST X 4 Текстурный слой | C154: 400 мл | E154: Аэрозоль | G154: Черный, мелкий | H154: 9 | I154: 8.144992373 | J154: 8.14 | L154: 0 | AD154: 0.4556 | AE154: 0.00882 | AF154: =AD154*K154 -> 0 | AG154: =AE154*(K154/H154) -> 0
A155: PLAS/4C | B155: PLAST X 4 Текстурный слой | C155: 400 мл | E155: Аэрозоль | G155: Черный, грубый | H155: 9 | I155: 8.144992373 | J155: 8.14 | L155: 0 | AD155: 0.3833 | AE155: 0.00882 | AF155: =AD155*K155 -> 0 | AG155: =AE155*(K155/H155) -> 0
A156: Серия аэрозолей POWER CAN | I156: 0
A157: PCAS/AL | B157: POWER CAN Эмаль для колесных дисков | C157: 500 мл | E157: Аэрозоль | G157: Серебристый | H157: 12 | I157: 5.437273729 | J157: 5.44 | L157: 0 | AD157: 0.4792 | AE157: 0.01389 | AF157: =AD157*K157 -> 0 | AG157: =AE157*(K157/H157) -> 0
A158: PCSS/AL | B158: POWER CAN Эмаль для колесных дисков | C158: 500 мл | E158: Аэрозоль | G158: Стальной | H158: 12 | I158: 5.437273729 | J158: 5.44 | L158: 0 | AD158: 0.4625 | AE158: 0.01389 | AF158: 0 | AG158: 0
A159: PCGB/AL | B159: POWER CAN Эмаль глянцевая | C159: 500 мл | E159: Аэрозоль | G159: Черный глянец | H159: 12 | I159: 5.437273729 | J159: 5.44 | L159: 0 | AD159: 0.4708 | AE159: 0.01389 | AF159: 0 | AG159: 0
A160: PCSB/AL | B160: POWER CAN Эмаль полуматовая | C160: 500 мл | E160: Аэрозоль | G160: Черный полумат | H160: 12 | I160: 5.437273729 | J160: 5.44 | L160: 0 | AD160: 0.4708 | AE160: 0.01389 | AF160: 0 | AG160: 0
A161: PCMB/AL | B161: POWER CAN Эмаль матовая | C161: 500 мл | E161: Аэрозоль | G161: Черный мат | H161: 12 | I161: 5.437273729 | J161: 5.44 | L161: 0 | AD161: 0.475 | AE161: 0.01389 | AF161: 0 | AG161: 0
A162: PCGW/AL | B162: POWER CAN Эмаль глянцевая | C162: 500 мл | E162: Аэрозоль | G162: Белый глянец | H162: 12 | I162: 5.437273729 | J162: 5.44 | L162: 0 | AD162: 0.4792 | AE162: 0.01389 | AF162: 0 | AG162: 0
A163: PCLC/AL | B163: POWER CAN 1K Лак c высоким глянцем | C163: 500 мл | E163: Аэрозоль | G163: Прозрачный | H163: 12 | I163: 5.524619492 | J163: 5.52 | L163: 0 | AD163: 0.5208 | AE163: 0.01389 | AF163: 0 | AG163: 0
A164: PCPG/AL | B164: POWER CAN Грунт выравниватель | C164: 500 мл | E164: Аэрозоль | G164: Серый | H164: 12 | I164: 5.437273729 | J164: 5.44 | L164: 0 | AD164: 0.4542 | AE164: 0.01389 | AF164: 0 | AG164: 0
A165: PCEP/AL | B165: POWER CAN Грунт протравливающий (Etch Primer) | C165: 500 мл | E165: Аэрозоль | G165: Темно-серый | H165: 12 | I165: 5.437273729 | J165: 5.44 | L165: 0 | AD165: 0.4708 | AE165: 0.01389 | AF165: 0 | AG165: 0
A166: Система наполнения аэрозолей CUSTOM CAN | I166: 0
A167: CCFOUP/AL | B167: CUSTOM CAN FILL-ONE Баллон аэрозольный призаряженный | C167: 400 мл | E167: Аэрозоль | G167: - | H167: 12 | I167: 4.367288136 | J167: =ROUND(I167*(1-$B$3),2) -> 4.37 | L167: =J167*K167 -> 0 | AD167: 0.3233 | AE167: 0.012 | AF167: =AD167*K167 -> 0 | AG167: =AE167*(K167/H167) -> 0
A168: CCFOFILLP | B168: CUSTOM CAN FILL-ONE Система наполнения аэрозолей, пневматическая | C168: - | E168: шт. | G168: - | H168: 1 | I168: 2557.931579 | J168: =ROUND(I168*(1-$B$3),2) -> 2557.93 | L168: =J168*K168 -> 0 | AD168: 4.6 | AE168: 0.00547 | AF168: 0 | AG168: 0
A169: CCFOFILLM | B169: CUSTOM CAN FILL-ONE Система наполнения аэрозолей, механическая | C169: - | E169: шт. | G169: - | H169: 1 | I169: 2302.139513 | J169: =ROUND(I169*(1-$B$3),2) -> 2302.14 | L169: =J169*K169 -> 0 | AD169: 4.6 | AE169: 0.00547 | AF169: 0 | AG169: 0
A170: CCUP/AL | B170: CUSTOM CAN Баллон аэрозольный призаряженный | C170: 400 мл | E170: Аэрозоль | G170: - | H170: 12 | I170: 4.170760169 | J170: 4.17 | L170: 0 | AD170: 0.3233 | AE170: 0.012 | AF170: 0 | AG170: 0
A171: CCFILLP | B171: CUSTOM CAN Система наполнения аэрозолей, пневматическая | C171: - | E171: шт. | G171: - | H171: 1 | I171: 2557.931579 | J171: 2557.93 | L171: 0 | AD171: 33 | AE171: 0.06445 | AF171: 0 | AG171: 0
A172: CCCUP | B172: CUSTOM CAN Стакан для системы наполнения аэрозолей | C172: - | E172: шт. | G172: - | H172: 1 | I172: 231.0077059 | J172: 231.01 | L172: 0 | AD172: 0.155 | AE172: 0.00021 | AF172: 0 | AG172: 0
A173: Сопутствующие материалы MAXIMUM | K173: =SUM(K174:K185) -> 0 | L173: =SUM(L174:L185) -> 0 | AF173: =SUM(AF174:AF185) -> 0 | AG173: =SUM(AG174:AG185) -> 0
A174: MFILM/B120 | B174: Пленка укрывочная, прозрачная, 5 х 120 м | C174: 5х120 м | E174: шт. | G174: Прозрачный | H174: 1 | I174: 56.28342585 | J174: =ROUND(I174*(1-$B$3),2) -> 56.28 | L174: =J174*K174 -> 0 | AD174: 8.2 | AE174: 0.02714 | AF174: =AD174*K174 -> 0 | AG174: =AE174*(K174/H174) -> 0
A175: MFILM/B150 | B175: Пленка укрывочная, прозрачная, 4 х 150 м | C175: 4х150 м | E175: шт. | G175: Прозрачный | H175: 1 | I175: 52.53847627 | J175: 52.54 | L175: 0 | AD175: 6.2 | AE175: 0.02714 | AF175: 0 | AG175: 0
A176: MFILMCUT | B176: Резак безопасный для укрывочной пленки | C176: - | E176: шт. | G176: - | H176: 5 | I176: 3.319138983 | J176: 3.32 | L176: 0 | AD176: 0.09 | AE176: 0.00018 | AF176: 0 | AG176: 0
A177: PFSF/1000 | B177: Фильтр-воронка 125 микрон | C177: 125 мк | E177: шт. | G177: - | H177: 1000 | I177: 0.07642754237 | J177: 0.08 | L177: 0 | AD177: 0.0053 | AE177: 0.0333 | AF177: 0 | AG177: 0
A178: PFEF/1000 | B178: Фильтр-воронка 190 микрон | C178: 190 мк | E178: шт. | G178: - | H178: 1000 | I178: 0.07642754237 | J178: 0.08 | L178: 0 | AD178: 0.0053 | AE178: 0.0333 | AF178: 0 | AG178: 0
A179: TRAG/10 | B179: Салфетка липкая | C179: - | E179: шт. | G179: - | H179: 10 | I179: 0.4585652542 | J179: 0.46 | L179: 0 | AD179: 0.016 | AE179: 0.00109 | AF179: 0 | AG179: 0
A180: ON/1 | B180: ONION BOARD Палитра многослойная для смешивания материалов (100 листов) | C180: 100 л | E180: шт. | G180: Белый | H180: 10 | I180: 7.992137288 | J180: 7.99 | L180: 0 | AD180: 0.62 | AE180: 0.01355 | AF180: 0 | AG180: 0
A181: COVER/M | B181: Комбинезон защитный с капюшоном, размер М | C181: М | E181: шт. | G181: Белый | H181: 10 | I181: 8.04672839 | J181: 8.05 | L181: 0 | AD181: 0.32 | AE181: 0.02288 | AF181: 0 | AG181: 0
A182: COVER/L | B182: Комбинезон защитный с капюшоном, размер L | C182: L | E182: шт. | G182: Белый | H182: 10 | I182: 8.04672839 | J182: 8.05 | L182: 0 | AD182: 0.32 | AE182: 0.02288 | AF182: 0 | AG182: 0
A183: COVER/XL | B183: Комбинезон защитный с капюшоном, размер XL | C183: XL | E183: шт. | G183: Белый | H183: 10 | I183: 8.04672839 | J183: 8.05 | L183: 0 | AD183: 0.32 | AE183: 0.02288 | AF183: 0 | AG183: 0
A184: COVER/XXL | B184: Комбинезон защитный с капюшоном, размер XXL | C184: XXL | E184: шт. | G184: Белый | H184: 10 | I184: 9.509769915 | J184: 9.51 | L184: 0 | AD184: 0.32 | AE184: 0.02288 | AF184: 0 | AG184: 0
A185: COVER/XXXL | B185: Комбинезон защитный с капюшоном, размер XXXL | C185: XXXL | E185: шт. | G185: Белый | H185: 10 | I185: 10.81995636 | J185: 10.82 | L185: 0 | AD185: 0.32 | AE185: 0.02288 | AF185: 0 | AG185: 0
A186: Окрасочные пистолеты MAXIMUM | K186: =SUM(K187:K191) -> 0 | L186: =SUM(L187:L191) -> 0 | AF186: =SUM(AF187:AF191) -> 0 | AG186: =SUM(AG187:AG191) -> 0
A187: GUNGHV/13 | B187: Пистолет окрасочный HVLP с верхней подачей 1.3 мм | C187: 1.3 мм | E187: шт. | G187: - | H187: 1 | I187: 172.9336919 | J187: 172.93 | L187: 0 | AD187: 1.1 | AE187: 0.00408 | AF187: =AD187*K187 -> 0 | AG187: =AE187*(K187/H187) -> 0
A188: GUNGHV/14 | B188: Пистолет окрасочный HVLP с верхней подачей 1.4 мм | C188: 1.4 мм | E188: шт. | G188: - | H188: 1 | I188: 172.9336919 | J188: 172.93 | L188: 0 | AD188: 1.1 | AE188: 0.00408 | AF188: =AD188*K188 -> 0 | AG188: =AE188*(K188/H188) -> 0
A189: GUNGHV/17 | B189: Пистолет окрасочный HVLP с верхней подачей 1.7 мм | C189: 1.7 мм | E189: шт. | G189: - | H189: 1 | I189: 172.9336919 | J189: 172.93 | L189: 0 | AD189: 1.1 | AE189: 0.00408 | AF189: =AD189*K189 -> 0 | AG189: =AE189*(K189/H189) -> 0
A190: GUNGHV/25 | B190: Пистолет окрасочный HVLP с верхней подачей 2.5 мм | C190: 2.5 мм | E190: шт. | G190: - | H190: 1 | I190: 172.9336919 | J190: 172.93 | L190: 0 | AD190: 1.1 | AE190: 0.00408 | AF190: =AD190*K190 -> 0 | AG190: =AE190*(K190/H190) -> 0
A191: GUNGMI/10 | B191: Пистолет окрасочный HVLP мини, с верхней подачей 1.0 мм | C191: 1.0 мм | E191: шт. | G191: - | H191: 1 | I191: 158.4233771 | J191: 158.42 | L191: 0 | AD191: 0.6 | AE191: 0.00167 | AF191: =AD191*K191 -> 0 | AG191: =AE191*(K191/H191) -> 0
A192: Вспомогательные материалы | K192: =SUM(K193:K195) -> 0 | L192: =SUM(L193:L195) -> 0 | AF192: =SUM(AF193:AF195) -> 0 | AG192: =SUM(AG193:AG195) -> 0
A193: GL/SM/D | B193: Набор ремонтный для работы со стекловолокном, маленький | C193: - | E193: Набор | G193: - | H193: 10 | I193: 8.112237712 | J193: 8.11 | L193: 0 | AD193: 0.5625 | AE193: 0.02667 | AF193: =AD193*K193 -> 0 | AG193: =AE193*(K193/H193) -> 0
A194: HRED/L | B194: Отвердитель для полиэфирных шпатлевок | C194: 40 г | E194: Пакет | G194: Красный | H194: 20 | I194: 1.135494915 | J194: 1.14 | L194: 0 | AD194: 0.045 | AE194: 0.00266 | AF194: =AD194*K194 -> 0 | AG194: =AE194*(K194/H194) -> 0
A195: PM1 | B195: Сетка алюминиевая 25 см х 20 см | C195: 25х20 см | E195: шт. | G195: Серебряный | H195: 50 | I195: 1.932525 | J195: 1.93 | L195: 0 | AD195: 0.023 | AE195: 0.00358 | AF195: =AD195*K195 -> 0 | AG195: =AE195*(K195/H195) -> 0
A196: Промо- и сувенирная продукция | K196: =SUM(K197:K199) -> 0 | L196: =SUM(L197:L199) -> 0 | AF196: =SUM(AF197:AF199) -> 0 | AG196: =SUM(AG197:AG199) -> 0
A197: VEST/RPT-M | B197: Жилет RAPTOR утепленный размер M | C197: M | E197: шт. | G197: Черный | H197: 1 | I197: 26.33 | J197: =ROUND(I197*(1-$B$3),2) -> 26.33 | L197: =J197*K197 -> 0 | AD197: 0.4 | AE197: 0.05 | AF197: =AD197*K197 -> 0 | AG197: =AE197*(K197/H197) -> 0
A198: VEST/RPT-L | B198: Жилет RAPTOR утепленный размер L | C198: L | E198: шт. | G198: Черный | H198: 1 | I198: 26.33 | J198: 26.33 | L198: 0 | AD198: 0.4 | AE198: 0.05 | AF198: =AD198*K198 -> 0 | AG198: =AE198*(K198/H198) -> 0
A199: VEST/RPT-XL | B199: Жилет RAPTOR утепленный размер XL | C199: XL | E199: шт. | G199: Черный | H199: 1 | I199: 26.33 | J199: 26.33 | L199: 0 | AD199: 0.4 | AE199: 0.05 | AF199: =AD199*K199 -> 0 | AG199: =AE199*(K199/H199) -> 0

Sheet Инструкция
A1: Инструкция по работе с формой заявки на материалы U-POL
A4: 1 | B4: Форма заявка является файлом шаблона Microsoft Excel - при каждом открытии формы создается новый документ, а оригинальная версия шаблона остается не тронутой. Каждый новый заказ необходимо начинать с открытия пустой формы шаблона, а не предыдущего заказа.
A6: 2 | B6: При открытии формы, для правильной работы макросов, необходимо разрешить работу макросов ответив положительно на соответсвующий запрос Microsoft Excel.
A8: 3 | B8: Ввод данных осуществляется на закладке "Order Form".
A10: 4 | B10: Все разделы формы заказа сгруппированы. Открыть/закрыть группу можно нажатием на знак "+"/"-" с лева от названия группы. При нажатии на "2" или "1" в верхнем левом углу окна, автоматически открываются/закрываются все группы.
A12: 5 | B12: Вводить необходимо только количества. Количества должны быть кратные количеству штук в упаковке.
A14: 6 | B14: Некоторые продукты присутсвуют в форме два раза. Например: грунты в аэрозольной упаковке находятся в разделе грунты и в разделе аэрозоли.
A16: 7 | B16: Для быстрого просмотра введенных данных можно воспользоваться кнопокй "Посмотреть заказ". Будут отфильтрованы только те материалы, которые присутсвуют в заказе. Выход из режима просмотра осуществляется нажатием на кнопку "Вернуться к полному списку".
